Cogmind - Beta 14 @@@ ROGUE MODE // 2024.11.19 @ 08:24:19 Player: mehbruh Result: Destroyed by G-34 Mercenary with Small Laser Performance ------------- Evolutions (0) 0 Regions Visited (2) 400 Robots Destroyed (28) 140 Value Destroyed (639) 639 Prototype IDs (0) 0 Alien Tech Used (0) 0 Bonus (0) 0 TOTAL SCORE: 1179 Bonus ------- None Cogmind --------- Core Integrity 0/250 Matter 294/300 Energy 250/250 System Corruption 4% Temperature Cool (36) Movement Treading (160) Location -10/Mines Parts ------- > --- POWER (1) -------- Ion Engine > --- PROPULSION (2) --- Light Treads Light Treads > --- UTILITY (2) ------ Improved Heat Sink Large Storage Unit > --- WEAPON (2) ------- Particle Cannon Light Assault Rifle > --- INVENTORY (15) --- Ion Engine Light Treads Compact Wheel Heat Sink Heat Sink Light Armor Plating Light Armor Plating Light Armor Plating Light Armor Plating Hacking Suite Particle Cannon Particle Cannon Particle Cannon Peak State ------------ > --- POWER ------------ Ion Engine > --- PROPULSION ------- Light Treads Light Treads > --- UTILITY ---------- Improved Heat Sink Large Storage Unit > --- WEAPON ----------- Particle Cannon Light Assault Rifle > --- INVENTORY -------- Ion Engine Light Treads Compact Wheel Heat Sink Heat Sink Light Armor Plating Light Armor Plating Light Armor Plating Light Armor Plating Hacking Suite Medium Laser Particle Cannon Particle Cannon Particle Cannon Light Assault Rifle [Rating: 12] Favorites ----------- Power Ion Engine Engine Ion Engine Propulsion Light Treads Treads Light Treads Utility Large Storage Unit Device Heat Sink Storage Large Storage Unit Weapon Light Assault Rifle Energy Gun EM Pulse Gun Energy Cannon Particle Cannon Ballistic Gun Light Assault Rifle Build | -11 -10 -10 ------- Run | Yrd Mat Min Slots Evolved . | . . . Power . | . . . Propulsion . | . . . Utility . | . . . Weapon . | . . . Parts Attached 18 | 6 9 3 Power 2 | 1 . 1 Engine 2 | 1 . 1 Core . | . . . Reactor . | . . . Propulsion 5 | 2 2 1 Treads 5 | 2 2 1 Leg . | . . . Wheel . | . . . Hover . | . . . Flight . | . . . Utility 4 | 1 3 . Device 2 | . 2 . Storage 2 | 1 1 . Processor . | . . . Hackware . | . . . Protection . | . . . Artifact . | . . . Weapon 7 | 2 4 1 Energy Gun 1 | 1 . . Energy Cannon 2 | . 2 . Ballistic Gun 4 | 1 2 1 Ballistic Cannon . | . . . Launcher . | . . . Special Weapon . | . . . Impact Weapon . | . . . Slashing Weapon . | . . . Piercing Weapon . | . . . Special Melee Weapon . | . . . Unidentified Prototypes . | . . . Parts Lost 3 | . . 3 Power 1 | . . 1 Propulsion 1 | . . 1 Utility . | . . . Weapon 1 | . . 1 Highest Loss Streak 2 | . . 2 To Critical Strikes . | . . . Average Slot Usage (%) 99 | . 98 100 Engine 14 | . 14 14 Treads 27 | . 27 28 Device 13 | . 13 14 Storage 14 | . 14 14 Energy Cannon 13 | . 13 14 Ballistic Gun 14 | . 14 14 Peak Build Rating 12 | 6 12 12 Average Rating 9 | 4 9 11 On Entrance 6 | . 6 12 Naked Turns . | . . . Heaviest Build 31 | 13 31 31 Greatest Support 40 | 40 40 40 Greatest Overweight (x) . | . . . Average Overweight (x) . | . . . Largest Inventory Capacity 15 | 8 15 15 Average Capacity 13 | 6 13 15 Most Carried 15 | 3 15 15 Average Carried 11 | 1 11 13 Final Capacity 15 | 8 15 15 Final Carried 15 | 3 15 13 Class Distribution -------------------- 100% | Mutant Dominant Class ---------------- Mutant | -10/Materials Mutant | -10/Mines Resources | -11 -10 -10 ----------- Run | Yrd Mat Min Matter Collected 491 | 241 200 50 Remotely . | . . . Salvage Created 872 | . 707 165 Parts 55 | . 45 10 Haulers Intercepted 2 | . 2 . Recyclers Shooed . | . . . Parts Field Recycled . | . . . Retrieved Matter . | . . . Parts Self-Destructed . | . . . Prevented . | . . . Kills | -11 -10 -10 ------- Run | Yrd Mat Min Combat Hostiles Destroyed 22 | . 16 6 Guns 13 | . 10 3 Cannons 9 | . 6 3 Classes Destroyed 6 | . 6 . Hauler 2 | . 2 . Recycler 1 | . 1 . Mechanic 1 | . 1 . Operator 2 | . 2 . Swarmer 9 | . 6 3 Grunt 13 | . 10 3 Best Kill Streak 3 | . 3 2 Combat Bots Only 3 | . 3 2 Max Kills in Single Turn 1 | . 1 1 Gunslinging . | . . . Exploded . | . . . Melee . | . . . Uniques/NPCs Destroyed . | . . . Combat | -11 -10 -10 -------- Run | Yrd Mat Min Hostile Shots Fired 150 | . 98 52 Missed 40 | . 30 10 Damage Taken 1163 | . 726 437 Core 253 | . 185 68 Absorbed by Shields . | . . . Regen/Repaired (Parts) 75 | . 75 . Core Remaining (%) 100 | 100 . . Volleys Fired 89 | . 66 23 Largest 2 | . 2 2 Hottest 88 | . 88 88 Shots Fired 174 | . 128 46 Gun 91 | . 68 23 Cannon 83 | . 60 23 Launcher . | . . . Special . | . . . Kinetic 91 | . 68 23 Thermal 83 | . 60 23 Explosive . | . . . Electromagnetic . | . . . Robot Hit Streak 12 | . 12 8 Robot Miss Streak 5 | . 5 4 Penetration Max . | . . . Secondary Targets . | . . . Shots Hit Robots 112 | . 87 25 Core Hits 47 | . 37 10 Critical Kills 2 | . 2 . Critical Parts Destroyed . | . . . Critical Strikes 2 | . 2 . Destroy 2 | . 2 . Melee Attacks . | . . . Impact . | . . . Slashing . | . . . Piercing . | . . . Sneak Attacks . | . . . Combat Hostiles . | . . . Follow-up Attacks . | . . . Damage Inflicted 1575 | . 1205 370 Guns 507 | . 393 114 Cannons 1032 | . 776 256 Explosions . | . . . Melee . | . . . Ramming 36 | . 36 . Kinetic 507 | . 393 114 Thermal 1032 | . 776 256 Explosive . | . . . Electromagnetic . | . . . Impact . | . . . Slashing . | . . . Piercing . | . . . Highest Corruption 4 | . 4 4 Average Corruption 3 | . 3 4 Corruption Purged . | . . . Corruption Blocked . | . . . Effects 29 | . 24 5 Message Errors 6 | . 5 1 Matter Fused 7 | . 7 . Heat Flow Errors 2 | . 2 . Energy Discharges 6 | . 4 2 Data Loss (minor) 5 | . 3 2 Misfires 2 | . 2 . Weapon Failures 1 | . 1 . Overload Shots . | . . . Overflow Damage 9 | . 9 . Projectiles 9 | . 9 . Explosions . | . . . Melee . | . . . Knockbacks . | . . . Impact . | . . . Kinetic . | . . . Secondary . | . . . Self-Inflicted Damage . | . . . Shots . | . . . Rammed 6 | . 6 . Targets Rammed 7 | . 7 . Kicked . | . . . Crushed 1 | . 1 . Highest Temperature 253 | . 253 71 Average Temperature 47 | . 54 28 Received Heat Transfer 483 | . 324 159 Siege Activations . | . . . Robots Corrupted . | . . . Combat Hostiles . | . . . Parts Fried . | . . . Impact Corruptions . | . . . Robots Melted . | . . . Combat Hostiles . | . . . Parts Melted 4 | . 3 1 Heat Transferred 1924 | . 1480 444 Parts Sabotaged . | . . . Parts Stolen . | . . . Parts Stripped . | . . . Power Chain Reactions . | . . . Alert | -11 -10 -10 ------- Run | Yrd Mat Min Peak Influence 170 | . 170 168 Initial 33 | . . 33 Average 74 | . 74 97 Maximum Alert Level . | . . . Low Security (%) 100 | 100 100 100 Level 1 . | . . . Level 2 . | . . . Level 3 . | . . . Level 4 . | . . . Level 5 . | . . . High Security . | . . . Max Security . | . . . Squads Dispatched 4 | . 4 . Investigation 1 | . 1 . Extermination . | . . . Reinforcement 3 | . 3 . Assault . | . . . Garrison . | . . . Intercept . | . . . Searches Triggered . | . . . Construction Impeded . | . . . Haulers Reinforced . | . . . Active Scanning Responses . | . . . Cargo Convoy Interrupts . | . . . Stealth | -11 -10 -10 --------- Run | Yrd Mat Min Distress Signals 1 | . 1 . Communications Jammed . | . . . Distress Signals . | . . . Times Spotted 40 | . 34 6 Peak Tracking Total 4 | . 4 2 Tactical Retreats . | . . . Traps | -11 -10 -10 ------- Run | Yrd Mat Min Traps Triggered 4 | . 4 . Indirectly . | . . . Trap Hack Attempts . | . . . Triggered . | . . . Disarmed . | . . . Reprogrammed . | . . . Reused . | . . . Traps Extracted . | . . . Installed . | . . . Triggered . | . . . Machines | -11 -10 -10 ---------- Run | Yrd Mat Min Machines Disabled . | . . . Max in Single Turn . | . . . Machines Repaired . | . . . Machines Dismantled . | . . . Machines Sabotaged . | . . . Overloaded Fab Kills . | . . . Hacking | -11 -10 -10 --------- Run | Yrd Mat Min Machines Accessed 7 | . 7 . Terminals 6 | . 6 . Fabricators . | . . . Repair Stations 1 | . 1 . Recycling Units . | . . . Scanalyzers . | . . . Garrison Access . | . . . Total Hacks 22 | . 22 . Successful 13 | . 13 . Failed 9 | . 9 . Catastrophic . | . . . Database Lockouts . | . . . Manual 18 | . 18 . Terminals 19 | . 19 . Fabricators . | . . . Repair Stations 3 | . 3 . Recycling Units . | . . . Scanalyzers . | . . . Garrison Access . | . . . Terminal Hacks 3 | . 3 . Robot Analysis 2 | . 2 . Locate Traps 1 | . 1 . Fabricator Hacks . | . . . Repair Station Hacks 2 | . 2 . Scan Component 1 | . 1 . Repair 1 | . 1 . Recycling Unit Hacks . | . . . Scanalyzer . | . . . Garrison Access Hacks . | . . . Unauthorized Hacks 8 | . 8 . Terminals 8 | . 8 . Botnet 2 | . 2 . Skim 6 | . 6 . Fabricators . | . . . Repair Stations . | . . . Recycling Units . | . . . Scanalyzers . | . . . Garrison Access . | . . . Data Cores Recovered . | . . . Used . | . . . Hacking Detections 7 | . 7 . Full Trace Events . | . . . Feedback Events . | . . . Feedback Blocked . | . . . Robot Schematics Acquired . | . . . Robots Built . | . . . Authchips . | . . . Time . | . . . Total Robot Build Rating . | . . . Part Schematics Acquired . | . . . Parts Built . | . . . Authchips . | . . . Time . | . . . Total Part Build Rating . | . . . Parts Repaired 1 | . 1 . Time 26 | . 26 . Parts Recycled . | . . . Recycled Matter . | . . . Retrieved Matter . | . . . Retrieved Components . | . . . Parts Scanalyzed . | . . . Part Schematics Acquired . | . . . Parts Damaged . | . . . Bothacking | -11 -10 -10 ------------ Run | Yrd Mat Min Used RIF Installer . | . . . Robots Hacked . | . . . Non-combat . | . . . Combat . | . . . Robot Hacks Applied . | . . . Relay Couplers Released . | . . . Fabnet Peak Effective % . | . . . Robots Rewired . | . . . Allies Hacked . | . . . Hacks Repelled . | . . . Allies | -11 -10 -10 -------- Run | Yrd Mat Min Total Allies . | . . . Largest Group . | . . . Highest-Rated Group . | . . . Highest-Rated Ally . | . . . Total Orders . | . . . Ally Attacks . | . . . Total Damage . | . . . Kills . | . . . Allies Corrupted . | . . . Allies Melted . | . . . Intel | -11 -10 -10 ------- Run | Yrd Mat Min Robot Analysis Total 2 | . 2 . Derelict Logs Recovered . | . . . Drone Launches . | . . . Drone Recoveries . | . . . Exploration | -11 -10 -10 ------------- Run | Yrd Mat Min Turns Passed 2016 | 64 1731 221 Spaces Moved 914 | 34 792 88 Core 1 | 1 . . Treads 913 | 33 792 88 Legs . | . . . Wheels . | . . . Hover . | . . . Flight . | . . . Fastest Speed 50 | 50 160 160 Average Speed 159 | 156 160 160 Slowest Speed 160 | 160 160 160 Overloaded Moves . | . . . Propulsion Burnouts . | . . . Robots Hopped . | . . . Cave-ins Triggered . | . . . Exploration Rate (%) 43 | 5 96 30 Regions Visited 2 Branch Regions 1 Pre-discovered Areas 3 | . 3 . Known Exits Taken 1 | . 1 . Unknown Exits Taken 1 | 1 . . Scrap Searched 1 | . . 1 Spaces Dug . | . . . Terrain Destroyed . | . . . Melee . | . . . Projectile . | . . . AOE . | . . . Terrain Rammed . | . . . Walls Destroyed . | . . . Machines Disabled . | . . . Actions | -11 -10 -10 --------- Run | Yrd Mat Min Total 1308 | 42 1140 126 Wait 257 | . 246 11 Move 912 | 33 791 88 Hop . | . . . Pick Up 17 | 3 13 1 Fast Attach 9 | 6 3 . Attach 3 | . . 3 Detach 1 | . 1 . Swap 6 | . 6 . Drop 7 | . 7 . Fire 89 | . 66 23 Melee . | . . . Ram . | . . . Kick . | . . . Crush 7 | . 7 . Escape Stasis . | . . . Rewire . | . . . Trap . | . . . Miscellaneous . | . . . Route ------- -11/Scrapyard -10/Materials (discovered 6 exits: *Mat x3 / *Min x2 / Sub) -10/Mines History --------- Turn | Location | Event 11 | -11/Scrapyard | Discovered new exit (range 16) 65 | -11/Scrapyard | Entered Materials 99 | -10/Materials | Discovered new exit (range 16) 313 | -10/Materials | Build established: Mutant 389 | -10/Materials | Discovered new exit (range 16) 498 | -10/Materials | Discovered new exit (range 8) 711 | -10/Materials | Discovered new exit (range 15) 1046 | -10/Materials | Repaired Lgt. Treads 1204 | -10/Materials | Core integrity fell below 50% 1249 | -10/Materials | Discovered new exit (range 13) 1501 | -10/Materials | Identified exit to Subcaves 1554 | -10/Materials | Learned location of 3 exits from Materials 1596 | -10/Materials | Identified exit to Mines 1596 | -10/Materials | Identified exit to Materials 1629 | -10/Materials | Learned location of Mines (-9) 1674 | -10/Materials | Learned location of Recycling (-8) 1716 | -10/Materials | Learned location of 1 exit from Storage 1750 | -10/Materials | Learned 2 Storage zone layouts 1795 | -10/Materials | Learned Materials emergency access door positions 1796 | -10/Materials | Entered Mines 1809 | -10/Mines | Core integrity fell below 20% 2017 | -10/Mines | Destroyed by G-34 Mercenary with Small Laser Last Messages --------------- 01836_ R-06 Scavenger collects Flight Unit. 01843_ K-01 Serf collects debris. 01877_ System corrupted: Component data lost. 01880_ K-01 Serf collects debris. 01880_ Searching scrap... 01880_ Found Ion Engine. 01880_ Found 37 Matter. 01881_ Acquired 37 matter. 01884_ Acquired Ion Engine. 01887_ K-01 Serf cleans the Matter Pump. 01891_ K-01 Serf collects debris. 01910_ System corrupted: Energy discharge (-97). 01926_ Lgt. Assault Rifle destroyed. 01930_ Critical hit (Burn: +37). 01932_ G-47 Trooper destroyed. 01935_ G-34 Mercenary destroyed. 01937_ Acquired 13 matter. 01981_ System corrupted: Energy discharge (-85). 02003_ Pulverizer disabled. 02011_ G-47 Trooper destroyed. Map ----- +----------------------------------------------------+ | ???????????????????# ##????????????? | | ???????????????????# #????????????? | | ?????????????#####?## #????????????? | | ?????????????# #??## ##????????????? | | ?????????????# ##??# ##?????????????? | | ????????????## #### #??????????????? | | ???????????## ## ##??????????????? | | ???????????# ##???????????????? | | ???????????# ##????????????????? | | ???????????## ####?????????????????? | | ????????????## ##????????????????????? | | ?????????????### ##?????????????????????? | | ???????????????# #??????????????????????? | | ???????????????# #??????????????????????? | | ???????????????# #?????????# ?????????? | | ???????????????#k###### ???????? | | ???????????????# ???????? | | ???????????????# #??????????? | | ???????????????# ###### # ##??????????? | | ???????????????# #??????????????????????? | | ???????????????# #??????????????????????? | | ???????????????# #??????????????????????? | | ???????????????# #??????????????????????? | | ???????????????# #??????????????????????? | | ???????????????# #??????????????????????? | | ???????????????#@#??????????????????????? | | ???????????????# #??????????????????????? | | ???????????????# #??????????????????????? | | ??????????????"" #?????????????????????? | | ????????????""" #?????????????????????? | | ??????????? """"%g#?????????????????????? | | ??????????? * #?????????????????????? | | ??????????? #?????????????????????? | | ????????????#######?????????????????????? | | ????????????????????????????????????????? | | | | | | | | | | | | | | | | | | | | | | | | | | | | | | | +----------------------------------------------------+ Best States ------------- Heat Dissipation 39 Energy Generation 10 Energy Capacity 250 Matter Stores 300 Matter Capacity 300 Sight Range 16 Terrain Scan Density 10 Evasion (%) 40 Recoil Reduction 2 Item Schematics ----------------- None Robot Schematics ------------------ None Fabricated ------------ Nothing Alien Tech Used ----------------- None Achievements -------------- None Challenges ------------ None Game ------ Seed MicrowarpModifiedStorm Manual? 0 Play Time 00:14:48 Cumulative 64.9 hours Start 2024.11.19 @ 08:11:09 End 2024.11.19 @ 08:24:19 Sessions 1 Manual Loads 0 Difficulty Rogue Special Mode None Game No. 55 Rogue 55 Adventurer 0 Explorer 0 Win Type - Total 2 Types 2/0/0/0/0/0/0/0/0 Lore% 24 Gallery% 42 Achievement% 43 Wizard Run 0 Options --------- Layout 1 ASCII 0 Keyboard 0 Movement Arrows Keybinds 0 Fullscreen 1 Font 24/Smallcaps Map View 50x35 Zoom Use 0% Tactical HUD 1 Map Filters NONE Filters NONE Steam 1 RUN: 51cbd8d5-0334-4f38-93d5-f96a26b92d17